bitfinex/quotes_ETHUSD_20250903
["timestamp","ask_amount","ask_price","bid_price","bid_amount"]
[1756918760614,0.318,4473.3,4473.2,5.98653608]
[1756918763607,0.002,4473.3,4473.2,5.98653608]
[1756918763808,0.002,4473.3,4473.2,6.81995329]
[1756918763990,0.002,4473.3,4473.2,7.11145329]
[1756918765424,0.945,4473.3,4473.2,5.98653608]
[1756918766332,0.945,4473.3,4473.2,5.98553608]
[1756918767490,0.002,4473.3,4473.2,5.98553608]
[1756918767808,0.0108,4473.3,4473.2,5.98553608]
[1756918767991,0.945,4473.3,4473.2,5.98553608]
[1756918768837,0.5086,4473.3,4473.2,5.98553608]
[1756918768997,0.0108,4473.3,4473.2,5.98553608]
[1756918769695,0.5014,4473.3,4473.2,5.98553608]
[1756918770128,0.0108,4473.3,4473.2,5.98553608]
[1756918773353,0.5014,4473.3,4473.2,5.98553608]
[1756918773523,0.9378,4473.3,4473.2,5.98553608]
[1756918774131,0.0108,4473.3,4473.2,7.70353608]
[1756918775114,0.002,4473.3,4473.2,7.70353608]
[1756918776251,0.0151,4473.3,4473.2,7.70353608]
[1756918777932,0.002,4473.3,4473.2,7.70353608]
[1756918778767,0.002,4473.3,4473.2,8.01743608]
[1756918779619,0.0125,4473.3,4473.2,7.70353608]
[1756918780251,0.0125,4473.3,4473.2,7.70253608]
[1756918780464,0.002,4473.3,4473.2,8.70755329]
[1756918780878,0.002,4473.3,4473.2,9.02145329]
[1756918781271,0.002,4473.3,4473.2,9.47545329]
[1756918781470,0.002,4473.3,4473.2,9.93305329]
[1756918782250,0.002,4473.3,4473.2,9.13345329]
[1756918782692,0.002,4473.3,4473.2,5.38445329]
[1756918782864,0.002,4473.3,4473.2,9.59105329]
[1756918783461,0.002,4473.3,4473.2,9.13345329]
[1756918783856,0.9066,4473.8,4473.7,2.23528622]
[1756918784057,0.9066,4473.8,4473.7,6.09628622]
[1756918784295,0.9171,4473.8,4473.7,0.112]
[1756918784582,1.39978907,4473.8,4473.7,6.09628622]
[1756918784792,1.39978907,4473.8,4473.7,3.861]
[1756918784994,1.39978907,4473.8,4473.7,6.09628622]
[1756918785687,1.39978907,4473.8,4473.7,3.861]
[1756918785896,1.66729811,4473.8,4473.7,3.861]
[1756918787298,1.39978907,4473.8,4473.7,3.861]
[1756918787793,1.39978907,4473.8,4473.7,6.09628622]
[1756918788601,1.40178907,4473.8,4473.7,6.09628622]
[1756918788995,1.40178907,4473.8,4473.7,3.861]
[1756918790310,1.40178907,4473.8,4473.7,6.09628622]
[1756918790602,1.40178907,4473.8,4473.7,3.861]
[1756918790766,1.40178907,4473.8,4473.7,6.09628622]
[1756918791603,2.07376209,4473.8,4473.7,6.09628622]
[1756918792025,1.16716209,4473.8,4473.7,6.09628622]
[1756918792184,2.04696209,4473.8,4473.7,6.09628622]
[1756918792689,2.04696209,4473.8,4473.7,0.112]
[1756918792891,8.23662902,4473.8,4473.7,3.86]
[1756918794090,1.65776209,4473.8,4473.7,2.34728622]
[1756918794285,2.04696209,4473.8,4473.7,6.09528622]
[1756918795914,2.04696209,4473.8,4473.7,0.112]
[1756918796125,2.04696209,4473.8,4473.7,3.86]
[1756918797312,2.04696209,4473.8,4473.7,0.112]
[1756918797614,2.04696209,4473.8,4473.7,3.86]
[1756918798112,2.04696209,4473.8,4473.5,2.3473769]
[1756918798314,1.36248907,4473.7,4473.6,3.748]
[1756918798613,1.37678907,4473.7,4473.6,2.23533619]
[1756918798925,1.37678907,4473.7,4473.6,5.98333619]
[1756918799127,1.37678907,4473.7,4473.6,3.748]
[1756918799415,1.37678907,4473.7,4473.5,0.112]
[1756918799621,0.0143,4473.7,4473.6,3.748]
[1756918799913,0.49621175,4473.7,4473.6,3.748]
[1756918800214,1.35911175,4473.7,4473.6,3.748]
[1756918800412,7.54877868,4473.7,4473.6,3.748]
[1756918800580,8.65491343,4473.7,4473.6,3.748]
[1756918800981,8.26951343,4473.7,4473.5,0.112]
[1756918801313,8.26951343,4473.7,4473.3,2.388]
[1756918801314,0.86731175,4473.6,4473.3,2.388]
[1756918801513,0.48191175,4473.5,4473.4,2.23543613]
[1756918801690,0.48191175,4473.5,4473.4,2.54843613]
[1756918801882,0.48191175,4473.5,4473.4,2.99683613]
[1756918802089,0.48191175,4473.5,4473.4,3.49243613]
[1756918802784,0.9638235,4473.5,4473.4,2.99683613]
[1756918803005,0.9638235,4473.5,4473.4,2.54843613]
[1756918803280,1.4453235,4473.5,4473.3,2.388]
[1756918803497,0.48191175,4473.4,4473.3,4.62345358]
[1756918804416,0.48191175,4473.4,4473.3,5.38485358]
[1756918804615,0.48191175,4473.4,4473.3,5.88045358]
[1756918804920,0.48191175,4473.5,4473.4,2.23543613]
[1756918805082,0.9639731,4473.5,4473.4,2.68383613]
[1756918805280,0.9639731,4473.5,4473.4,2.99683613]
[1756918805804,0.9639731,4473.5,4473.4,3.49243613]
[1756918806418,0.9639731,4473.5,4473.4,3.393077]
[1756918806597,0.002,4473.8,4473.7,2.23528622]
[1756918806799,0.002,4473.8,4473.7,5.98328622]
[1756918807042,0.002,4473.8,4473.7,7.35228622]
[1756918809207,0.002,4473.8,4473.7,10.35228622]
[1756918809415,0.002,4473.8,4473.7,11.64595444]
[1756918820243,0.002,4473.8,4473.7,6.95395444]
[1756918820460,0.002,4473.8,4473.7,10.69995444]
[1756918820664,0.002,4473.8,4473.7,6.95395444]
[1756918820834,0.002,4473.8,4473.7,10.69995444]
[1756918821171,5.16172625,4473.8,4473.7,3.64095444]
[1756918821358,0.002,4473.8,4473.7,7.35028622]
[1756918822772,0.002,4473.8,4473.7,10.35028622]
[1756918825052,0.002,4473.8,4473.7,10.82778622]
[1756918827583,0.002,4473.8,4473.7,10.33218622]
[1756918828182,0.002,4473.8,4473.7,10.82778622]
[1756918828478,0.002,4473.8,4473.7,12.16910444]
[1756918830680,0.002,4473.8,4473.7,7.47910444]
[1756918830883,0.002,4473.8,4473.7,11.22410444]
[1756918831200,0.8523,4473.8,4473.7,6.09228622]
[1756918831491,0.8523,4473.8,4473.7,2.34728622]
[1756918831671,0.8523,4473.8,4473.7,6.09228622]
[1756918832070,1.52421281,4473.8,4473.7,6.09228622]
[1756918833008,0.67791281,4473.8,4473.7,6.09228622]
[1756918833294,1.52421281,4473.8,4473.7,6.09228622]
[1756918833657,1.12861281,4473.8,4473.7,6.09228622]
[1756918833858,0.006,4473.8,4473.7,6.09228622]
[1756918834694,0.006,4473.8,4473.7,2.34728622]
[1756918834993,0.8523,4473.8,4473.7,6.09228622]
[1756918835498,0.006,4473.8,4473.7,2.34728622]
[1756918835790,0.006,4473.8,4473.7,6.09228622]
[1756918837487,0.002,4473.8,4473.7,6.09228622]
[1756918837959,0.3177,4473.8,4473.7,6.09228622]
[1756918838166,0.002,4473.8,4473.7,6.09228622]
[1756918839068,0.002,4473.8,4473.7,8.13195035]
[1756918839318,0.002,4473.8,4473.7,8.8037443]
[1756918839606,0.002,4473.8,4473.7,8.13195035]
[1756918840278,0.002,4473.8,4473.7,11.13195035]
[1756918840481,0.002,4473.8,4473.7,11.80371872]
[1756918840787,0.002,4473.8,4473.7,11.13195035]
[1756918842726,0.002,4473.8,4473.7,11.80369315]
[1756918843300,0.002,4473.8,4473.7,11.34739315]
[1756918843887,0.002,4473.8,4473.7,10.22485035]
[1756918844417,0.002,4473.8,4473.7,6.47985035]
[1756918844632,0.002,4473.8,4473.7,10.22385035]
[1756918844922,0.002,4473.8,4473.7,10.67465035]
[1756918845125,0.002,4473.8,4473.7,11.13095035]
[1756918846024,0.002,4473.8,4473.7,7.38695035]
[1756918846219,0.002,4473.8,4473.7,10.67465035]
[1756918847526,0.002,4473.8,4473.7,11.13095035]
[1756918849749,0.002,4473.8,4473.7,10.22385035]
[1756918850044,0.002,4473.8,4473.7,9.92415035]
[1756918851546,0.002,4473.8,4473.7,10.22385035]
[1756918851925,0.002,4473.8,4473.7,10.67465035]
[1756918852327,0.002,4473.8,4473.7,11.13095035]
[1756918854748,0.002,4473.8,4473.7,11.2958103]
[1756918854913,0.002,4473.8,4473.7,11.7715103]
[1756918857949,0.3177,4473.8,4473.7,6.8207103]
[1756918858252,0.3177,4473.8,4473.7,10.5637103]
[1756918858463,0.002,4473.8,4473.7,10.0880103]
[1756918858944,0.002,4473.8,4473.7,10.3877103]
[1756918859746,0.002,4473.8,4473.7,11.3093103]
[1756918860321,0.002,4473.8,4473.7,10.3877103]
[1756918860849,0.002,4473.8,4473.7,10.0880103]
[1756918861565,0.002,4473.8,4473.7,10.3937103]
[1756918861982,0.002,4473.8,4473.7,10.8547103]
[1756918864741,0.002,4473.8,4473.7,12.5727103]
[1756918865755,0.002,4473.8,4473.7,13.0507103]
[1756918867472,0.002,4473.8,4473.7,12.5727103]
[1756918868255,0.478,4474.3,4474.2,2.23503643]
[1756918868438,0.3996,4474.5,4474.4,2.23493652]
[1756918868644,0.503,4474.8,4474.7,2.23478668]
[1756918868844,0.813,4474.8,4474.7,5.97678668]
[1756918869045,0.813,4474.8,4474.7,6.08878668]
[1756918869379,1.7406,4474.8,4474.7,6.08878668]
[1756918872551,1.2626,4474.8,4474.7,6.08878668]
[1756918874289,0.025,4474.8,4474.7,7.84322203]
[1756918874656,0.025,4474.8,4474.7,7.38222203]
[1756918874850,0.9526,4475.8,4475.7,2.23428737]
[1756918875055,2.4171023,4475.8,4475.7,5.97528737]
[1756918875250,2.4171023,4475.8,4475.7,6.08728737]
[1756918875557,1.74550988,4475.8,4475.7,6.08728737]
[1756918876173,1.2626,4475.8,4475.7,2.34628737]
[1756918876464,1.45601924,4475.8,4475.7,3.853]
[1756918876665,1.2626,4475.8,4475.7,6.08728737]
[1756918877011,1.74507126,4475.8,4475.7,3.853]
[1756918877886,1.74507126,4475.8,4475.7,6.08728737]
[1756918878263,1.74507126,4475.8,4475.7,0.112]
[1756918878498,1.74507126,4475.8,4475.7,3.853]
[1756918878682,2.6656518,4475.8,4475.7,3.853]
[1756918879308,2.6676518,4475.8,4475.7,3.853]
[1756918879509,1.74707126,4475.8,4475.7,3.853]
[1756918881110,1.74707126,4475.8,4475.7,0.112]
[1756918881276,1.74707126,4475.8,4475.7,3.853]
[1756918883475,1.29747126,4475.8,4475.7,3.853]
[1756918883806,1.74707126,4475.8,4475.7,3.853]
[1756918884186,1.29747126,4475.8,4475.7,6.08728737]
[1756918884390,0.81947126,4475.8,4475.7,6.08728737]
[1756918884593,1.18109375,4475.8,4475.7,6.08728737]
[1756918884966,1.18109375,4475.8,4475.7,6.39298737]
[1756918886102,1.18109375,4475.8,4475.7,6.08728737]
[1756918886301,1.49109375,4475.8,4475.7,6.08728737]
[1756918886508,1.96909375,4475.8,4475.7,6.08728737]
[1756918886690,2.41869375,4475.8,4475.7,6.08728737]
[1756918887017,2.41869375,4475.8,4475.7,0.112]
[1756918887330,1.49109375,4475.8,4475.7,6.08628737]
[1756918887485,1.18109375,4475.8,4475.7,6.08628737]
[1756918887882,1.49109375,4475.8,4475.7,6.08628737]
[1756918888223,0.50947126,4475.8,4475.7,6.39198737]
[1756918888382,0.50947126,4475.8,4475.7,6.85298737]
[1756918888815,0.027,4475.8,4475.7,7.9806041]
[1756918889110,0.027,4475.8,4475.7,8.4514041]
[1756918890017,0.027,4475.8,4475.7,4.97961673]
[1756918890182,0.027,4475.8,4475.7,6.08628737]
[1756918890384,0.3309,4475.8,4475.7,3.852]
[1756918891228,0.3309,4475.8,4475.7,6.08628737]
[1756918891527,0.3309,4475.8,4475.7,3.852]
[1756918891732,0.3309,4475.8,4475.7,6.08628737]
[1756918891895,0.3309,4475.8,4475.7,3.852]
[1756918892095,1.2139,4475.8,4475.7,0.112]
[1756918892392,1.2139,4475.8,4475.7,6.08628737]
[1756918892393,0.027,4475.8,4475.7,6.08628737]
[1756918892611,0.027,4475.8,4475.7,6.40278737]
[1756918892809,0.027,4475.8,4475.7,6.08628737]
[1756918894516,0.027,4475.8,4475.7,6.40278737]
[1756918895423,0.027,4475.8,4475.7,7.95640475]
[1756918895612,0.027,4475.8,4475.7,8.42650475]
[1756918897516,0.3309,4475.8,4475.7,0.112]
[1756918897822,0.3309,4475.8,4475.7,6.08528737]
[1756918898221,0.027,4475.8,4475.7,6.08528737]
[1756918898423,0.7835,4475.8,4475.7,0.112]
[1756918898620,1.45505334,4475.8,4475.7,3.851]
[1756918898827,1.88545334,4475.8,4475.7,3.851]
[1756918899533,1.88545334,4475.8,4475.7,6.08528737]
[1756918899733,1.00245334,4475.8,4475.7,6.08528737]
[1756918900031,0.69855334,4475.8,4475.7,6.08528737]
[1756918900238,0.69855334,4475.8,4475.7,6.40178737]
[1756918900439,0.69855334,4475.8,4475.7,6.87278737]
[1756918900824,0.027,4475.8,4475.7,7.95530412]
[1756918901046,0.027,4475.8,4475.7,8.42540412]
[1756918902155,0.027,4475.8,4475.7,7.16780412]
[1756918902339,0.027,4475.8,4475.7,6.08528737]
[1756918903145,0.027,4475.8,4475.7,6.40178737]
[1756918904458,0.027,4475.8,4475.7,6.08528737]
[1756918905664,0.3309,4475.8,4475.7,6.08528737]
[1756918906459,0.027,4475.8,4475.7,6.08528737]
[1756918906775,0.027,4475.8,4475.7,6.40178737]
[1756918906976,0.027,4475.8,4475.7,6.87278737]
[1756918907182,0.027,4475.8,4475.7,7.34288737]
[1756918907478,0.027,4475.8,4475.7,8.36041412]
[1756918907658,0.027,4475.8,4475.7,8.47241412]
[1756918910854,0.027,4475.8,4475.7,8.47141412]
[1756918918087,0.027,4475.8,4475.7,8.00131412]
[1756918918549,0.027,4475.8,4475.7,8.47041412]
[1756918920299,0.025,4476.8,4475.7,8.47041412]
[1756918920300,0.025,4476.8,4476.4,2.23393798]
[1756918920505,0.025,4476.8,4476.7,2.23378828]
[1756918920700,0.025,4476.8,4476.7,6.08278828]
[1756918920927,0.3389,4476.8,4476.7,6.08278828]
[1756918921133,1.2461,4476.8,4476.7,6.08278828]
[1756918921338,0.025,4476.8,4476.7,7.27445276]
[1756918921494,0.025,4476.8,4476.7,7.70415276]
[1756918922424,0.025,4476.8,4476.7,8.18145276]
[1756918922940,0.025,4476.8,4476.7,4.44445276]
[1756918923136,0.3389,4476.8,4476.7,6.97415276]
[1756918923336,1.2461,4476.8,4476.7,5.97078828]
[1756918923827,0.8154,4476.8,4476.7,5.97078828]
[1756918923995,0.3389,4476.8,4476.7,5.97078828]
[1756918924698,0.025,4476.8,4476.7,6.27108828]
[1756918924898,0.025,4476.8,4476.7,7.29328276]
[1756918925605,0.025,4476.8,4476.7,6.99298276]
[1756918925801,0.025,4476.8,4476.7,7.29328276]
[1756918926127,0.025,4476.8,4476.7,8.20028276]
[1756918926327,0.4765,4477.6,4476.7,8.20028276]
[1756918926328,0.025,4477.8,4477.7,2.23328941]
[1756918926530,0.025,4477.8,4477.7,5.97028941]
[1756918926735,0.3389,4477.8,4477.7,5.97028941]
[1756918927606,1.2461,4477.8,4477.7,5.96928941]
[1756918927809,0.8154,4477.8,4477.7,5.96928941]
[1756918928204,1.2461,4477.8,4477.5,2.23335596]
[1756918928405,0.9072,4477.7,4477.6,5.96933928]
[1756918928611,1.2211,4477.7,4477.6,5.96933928]
[1756918929629,0.7904,4477.7,4477.6,5.96933928]
[1756918929792,1.2211,4477.7,4477.6,2.23333928]
[1756918929995,1.2211,4477.7,4477.6,5.96933928]
[1756918930233,0.7904,4477.7,4477.6,5.96933928]
[1756918930534,1.2211,4477.7,4477.6,5.96933928]
[1756918931304,1.2211,4477.7,4477.6,6.08133928]
[1756918932002,1.2211,4477.7,4477.6,3.848]
[1756918932221,1.2211,4477.7,4477.6,6.08133928]
[1756918932625,1.2211,4477.7,4477.6,2.34533928]
[1756918932824,0.7904,4477.7,4477.6,2.34533928]
[1756918933026,0.7904,4477.7,4477.6,6.08133928]
[1756918933336,1.2211,4477.7,4477.6,6.08133928]
[1756918934537,0.7904,4477.7,4477.6,6.08133928]
[1756918934737,0.3139,4477.7,4477.6,6.08133928]
[1756918935337,0.69633543,4477.8,4477.7,2.23328941]
[1756918935338,0.025,4477.8,4477.7,2.23328941]
[1756918935502,0.69630689,4477.8,4477.7,2.23328941]
[1756918935898,1.01020689,4477.8,4477.7,5.96928941]
[1756918936741,0.69630689,4477.8,4477.7,5.96928941]
[1756918937236,1.01020689,4477.8,4477.7,5.96928941]
[1756918938331,1.48670689,4477.8,4477.7,2.23328941]
[1756918938518,1.91740689,4477.8,4477.7,5.96928941]
[1756918938718,1.91740689,4477.8,4477.6,0.112]
[1756918938719,7.06627378,4477.8,4477.6,0.112]
[1756918938908,1.13732738,4477.7,4477.6,0.112]
[1756918939241,1.6185657,4477.7,4477.2,0.112]
[1756918939442,0.95773832,4477.6,4477.5,3.735]
[1756918939642,1.70233832,4477.6,4477.2,0.112]
[1756918939844,0.48123832,4477.5,4477.2,3.847]
[1756918940138,0.94546984,4477.4,4477.2,3.847]
[1756918940439,1.70233832,4477.3,4477.2,0.112]
[1756918940645,6.85120521,4477.3,4477.1,3.735]
[1756918940953,1.38843832,4477.2,4476.9,3.735]
[1756918941121,0.57623152,4477.4,4476.7,1.829]
[1756918941122,0.3139,4477.0,4476.7,1.829]
[1756918941324,6.05606689,4476.9,4476.8,3.735]
[1756918941631,7.04147212,4476.9,4476.8,3.735]
[1756918943144,7.52297298,4476.9,4476.3,3.735]
[1756918943345,5.14886689,4476.4,4476.3,3.847]
[1756918943549,6.36996689,4476.4,4476.3,3.847]
[1756918944816,6.85144787,4476.4,4476.3,3.847]
[1756918945229,6.36996689,4476.4,4476.3,3.847]
[1756918947347,6.36996689,4476.4,4476.3,0.112]
[1756918947561,6.36996689,4476.4,4476.3,3.848]
[1756918948078,2.2341041,4476.1,4475.8,0.025]
[1756918948224,2.2341041,4476.1,4475.9,3.735]
[1756918948225,5.14886689,4476.1,4475.9,3.735]
[1756918948427,1.2211,4476.0,4475.9,3.735]
[1756918948737,1.2211,4476.0,4475.8,3.761]
[1756918949260,0.3139,4476.0,4475.8,3.761]
[1756918950446,0.3139,4476.0,4475.8,3.762]
[1756918950761,0.9413,4475.9,4475.8,3.762]
[1756918950966,5.14886689,4476.0,4475.8,4.0506]
[1756918951361,5.14886689,4476.0,4475.8,6.28483187]
[1756918951949,5.14886689,4476.0,4475.8,6.28482874]
[1756918952147,5.14886689,4476.0,4475.8,4.0506]
[1756918952769,0.2926,4475.9,4475.8,0.026]
[1756918953073,0.2926,4475.9,4475.8,3.762]
[1756918953480,0.7597,4475.9,4475.8,3.762]
[1756918953663,0.7597,4475.9,4475.8,0.026]
[1756918953865,0.7597,4475.9,4475.8,3.762]
[1756918954052,1.2339,4475.9,4475.8,3.762]
[1756918954379,1.2339,4475.9,4475.8,0.026]
[1756918954380,2.95474658,4475.9,4475.8,0.026]
[1756918954586,12.32093411,4475.9,4475.8,0.026]
[1756918954784,12.32093411,4475.9,4474.8,0.026]
[1756918954785,2.23445223,4475.4,4474.8,0.026]
[1756918954992,2.23445223,4475.4,4475.0,0.112]
[1756918955284,0.2926,4475.1,4475.0,0.112]
[1756918956244,6.38276689,4475.1,4474.8,0.026]
[1756918956458,6.38276689,4475.1,4474.8,3.762]
[1756918956844,0.4671,4475.0,4474.8,3.762]
[1756918957048,0.2926,4474.9,4474.8,3.874]
[1756918957250,0.2926,4474.9,4474.8,0.138]
[1756918957476,0.2926,4474.9,4474.8,3.874]
[1756918957678,5.14886689,4475.1,4474.9,2.23467975]
[1756918957847,5.14886689,4475.1,4475.0,0.2886]
[1756918958283,0.67179395,4475.2,4475.0,0.2886]
[1756918958487,7.02,4475.9,4475.6,2.23431753]
[1756918958787,7.02,4475.9,4475.8,0.2886]
[1756918958991,12.840536,4476.0,4475.8,0.2886]
[1756918959485,0.792,4475.8,4475.3,3.736]
[1756918959779,5.14886689,4475.4,4475.3,3.848]
[1756918959944,5.14886689,4475.4,4475.3,6.37108707]
[1756918960143,5.14886689,4475.5,4475.3,6.37108707]
[1756918960361,5.14886689,4475.5,4475.4,2.23443714]
[1756918961181,5.14886689,4475.5,4475.4,5.97043714]
[1756918961794,5.14886689,4475.5,4475.4,6.25903714]
[1756918961998,7.02,4476.0,4475.4,4.9601]
[1756918962291,5.14886689,4475.8,4475.6,2.23429373]
[1756918962491,7.02,4476.0,4475.9,2.52278753]
[1756918962651,7.02,4476.0,4475.9,3.45828753]
[1756918964155,7.02,4476.1,4476.0,2.23413762]
[1756918964461,5.14886689,4476.4,4476.3,2.23398789]
[1756918964681,5.14886689,4476.4,4476.3,6.25858789]
[1756918966603,5.82044729,4476.7,4476.6,2.23383818]
[1756918966786,0.6715804,4476.7,4476.6,5.96983818]
[1756918966977,0.025,4476.8,4476.6,6.37043818]
[1756918967178,0.48090679,4476.7,4476.6,6.37043818]
[1756918967402,5.62977368,4476.7,4476.6,6.37043818]
[1756918967568,5.14886689,4476.7,4476.6,2.63443818]
[1756918967768,5.14886689,4476.7,4476.6,6.37043818]
[1756918968006,5.14886689,4476.7,4476.6,6.83943818]
[1756918969127,5.14886689,4476.7,4476.6,3.848]
[1756918969128,6.49310576,4476.7,4476.6,3.848]
[1756918969274,7.44865847,4476.7,4476.5,3.736]
[1756918969476,6.09016689,4476.6,4476.5,3.736]
[1756918969868,5.44146689,4476.6,4476.5,3.736]
[1756918970074,5.14886689,4476.6,4476.5,3.736]
[1756918970273,5.44146689,4476.6,4476.5,3.736]
[1756918972099,5.44146689,4476.6,4476.5,5.96988808]
[1756918972100,5.63045373,4476.6,4476.5,5.96988808]
[1756918972297,5.63045373,4476.6,4476.5,6.25848808]
[1756918973019,0.48158684,4476.6,4476.5,6.25848808]
[1756918973232,0.025,4476.8,4476.7,2.23378828]
[1756918973434,0.50657532,4476.8,4476.7,5.96978828]
[1756918973597,0.50657532,4476.8,4476.7,6.25838828]
[1756918973793,0.50657532,4476.8,4476.7,6.37038828]
[1756918975502,0.50657532,4476.8,4476.7,6.83938828]
[1756918976008,0.50657532,4476.8,4476.7,6.37038828]
[1756918976393,0.025,4476.8,4476.7,6.37038828]
[1756918977590,0.025,4476.8,4476.7,6.25838828]
[1756918977780,0.025,4476.8,4476.7,7.30588828]
[1756918979514,0.025,4476.8,4476.7,8.25986592]
[1756918984448,0.025,4476.8,4476.7,4.52386592]
[1756918984648,0.025,4476.8,4476.7,8.25886592]
[1756918985664,0.025,4476.8,4476.7,11.25886592]
[1756918986754,0.025,4476.8,4476.7,7.52386592]
[1756918986936,0.025,4476.8,4476.7,11.25886592]
[1756918988237,1e-08,4476.8,4476.7,11.25886592]
[1756918990370,1e-08,4476.9,4476.8,5.23373838]
[1756918990545,1e-08,4476.9,4476.8,12.65051324]
[1756918990756,1e-08,4476.9,4476.8,13.87101324]
[1756918991072,1e-08,4476.9,4476.8,14.77501324]
[1756918991841,1e-08,4476.9,4476.8,18.50901324]
[1756918993775,1e-08,4477.0,4476.9,6.02568848]
[1756918994082,1e-08,4477.8,4477.7,2.23328941]
[1756918994249,1e-08,4477.8,4477.7,10.68428941]
[1756918994580,1e-08,4477.8,4477.7,12.01678941]
[1756918996275,1e-08,4477.8,4477.7,11.09258941]
[1756918997039,1e-08,4477.8,4477.7,11.56518941]
[1756918997245,1e-08,4477.8,4477.7,13.39664423]
[1756918997495,1e-08,4477.8,4477.7,14.18864423]
[1756918997778,1e-08,4477.8,4477.7,20.25140673]
[1756918998677,1e-08,4477.8,4477.7,20.25040673]
[1756918998891,1e-08,4477.8,4477.7,20.42189439]
[1756918999884,1e-08,4477.8,4477.7,16.68889439]
[1756919000084,1e-08,4477.8,4477.7,20.42189439]
[1756919002649,1e-08,4477.8,4477.7,20.47420673]
[1756919003286,1e-08,4478.8,4478.7,2.23279076]
[1756919003583,1e-08,4478.8,4478.7,11.15168371]
[1756919003795,1e-08,4478.8,4478.7,11.42565581]
[1756919005856,1e-08,4478.8,4478.7,12.34985581]
[1756919006166,0.4958,4479.8,4479.7,2.23229234]
[1756919006360,0.4958,4479.8,4479.7,10.68129234]
[1756919006668,0.8011,4479.8,4479.7,10.68129234]
[1756919007670,0.8011,4479.8,4479.7,10.79329234]
[1756919007984,1.2719,4479.8,4479.7,10.79329234]
[1756919008159,0.8011,4479.8,4479.7,10.79329234]
[1756919008895,0.3303,4479.8,4479.7,10.79329234]
[1756919009079,0.8011,4479.8,4479.7,10.79329234]
[1756919009281,0.3323,4479.8,4479.7,10.79329234]
[1756919009485,0.3323,4479.8,4479.7,12.09585764]
[1756919009801,0.025,4480.8,4480.7,2.23179413]
[1756919009959,0.025,4480.8,4480.7,7.79099413]
[1756919010164,0.7901,4480.8,4480.7,7.79099413]
[1756919010387,1.2322,4480.8,4480.7,7.79099413]
[1756919010587,1.2322,4480.8,4480.7,10.79099413]
[1756919010588,0.3241,4480.8,4480.7,10.79099413]
[1756919010756,0.3241,4480.8,4480.7,12.09327987]
[1756919011310,0.7662,4480.8,4480.7,12.09327987]
[1756919011831,0.3241,4480.8,4480.7,12.09327987]
[1756919012037,0.025,4480.8,4480.7,12.38627987]
[1756919012204,0.025,4480.8,4480.7,13.29687987]
[1756919012398,0.025,4480.8,4480.7,12.84677987]
[1756919012736,0.025,4480.8,4480.7,12.09327987]
[1756919012915,0.3241,4480.8,4480.7,7.05899413]
[1756919013119,0.7662,4480.8,4480.7,10.79099413]
[1756919013496,0.7662,4480.8,4480.7,7.05899413]
[1756919013697,0.7662,4480.8,4480.7,10.79099413]
[1756919013897,0.7662,4480.8,4480.7,7.05899413]
[1756919014103,1.2322,4480.8,4480.7,5.5592]
[1756919014417,1.2322,4480.8,4480.7,7.79099413]
[1756919015208,1.2322,4480.8,4480.7,1.8272]
[1756919015425,1.97289625,4480.8,4480.7,3.8422]
[1756919015722,4.68364272,4480.8,4480.7,3.731]
[1756919015928,4.20464058,4480.8,4480.7,3.731]
[1756919016299,4.68382435,4480.8,4480.7,3.731]
[1756919016702,2.45208002,4480.8,4480.2,0.112]
[1756919016898,2.23198995,4480.4,4480.2,0.112]
[1756919017100,6.1747625,4480.6,4480.3,3.731]
[1756919017308,0.2991,4480.4,4479.5,1.716]
[1756919017656,6.1747625,4479.6,4479.5,0.112]
[1756919017826,10.09353695,4479.6,4479.5,0.112]
[1756919018013,8.31140761,4479.6,4479.5,0.112]
[1756919018219,2.23239729,4479.5,4479.3,3.318]
[1756919018410,0.47923228,4479.4,4479.3,3.318]
[1756919018606,0.47923228,4479.4,4479.2,3.731]
[1756919018607,1.68643228,4479.4,4479.2,3.731]
[1756919018825,1.38787946,4479.3,4479.2,3.731]
[1756919019029,1.68697946,4479.3,4479.2,3.731]
[1756919019231,7.86174196,4479.3,4479.2,3.731]
[1756919020200,1.68697946,4479.3,4479.2,3.731]
[1756919021233,1.68697946,4479.3,4479.1,1.828]
[1756919021443,0.2991,4479.3,4479.2,3.731]
[1756919021642,0.77907024,4479.3,4479.2,3.731]
[1756919022055,1.68717024,4479.3,4479.2,3.731]
[1756919022955,1.22117024,4479.3,4479.2,3.731]
[1756919024245,1.22117024,4479.3,4479.2,3.732]
[1756919025846,0.77907024,4479.3,4479.2,3.732]
[1756919026036,0.2991,4479.3,4479.2,3.732]
[1756919026441,0.7412,4479.3,4479.2,3.732]
[1756919027718,0.2991,4479.3,4479.2,3.732]
[1756919027953,0.7412,4479.3,4479.1,1.829]
[1756919028135,0.7651,4479.3,4479.2,3.732]
[1756919028729,1.2072,4479.3,4479.2,3.732]
[1756919029458,0.7412,4479.3,4479.2,3.732]
[1756919030660,0.7412,4479.3,4479.1,1.829]
[1756919030958,0.7412,4479.3,4479.2,3.732]
[1756919031163,0.7412,4479.3,4479.1,1.829]
[1756919031362,0.2991,4479.3,4479.2,3.732]
[1756919031950,0.7412,4479.3,4479.2,3.732]
[1756919032158,0.2991,4479.3,4479.2,3.732]
[1756919032561,7.02,4479.3,4479.2,4.025]
[1756919032861,7.02,4479.3,4479.2,4.4855]
[1756919033959,7.02,4479.3,4479.2,4.025]
[1756919034359,7.02,4479.3,4479.2,3.732]
[1756919035336,7.02,4479.3,4479.2,5.96454152]
[1756919038270,7.02,4479.3,4479.2,6.71804152]
[1756919038481,7.02,4479.7,4479.3,2.23247905]
[1756919038687,8.21090908,4479.7,4479.4,3.732]
[1756919038984,0.2991,4479.5,4479.1,1.717]
[1756919039173,7.02,4479.7,4479.5,0.112]
[1756919039351,7.02,4479.7,4479.6,5.96434217]